fUSD/lending_fUSD_20250811
["ID","MTS","AMOUNT","RATE_DAILY","PERIOD"]
[378600879,1754922634944,-1115.06,0.00016438,2]
[378600880,1754922634954,-400.0,0.00016438,2]
[378600881,1754922634963,-717.66,0.00016438,2]
[378600882,1754922634972,-129.27119357,0.00016438,2]
[378600883,1754922634991,-270.72880643,0.00016438,2]
[378600884,1754922635000,-400.0,0.00016438,2]
[378600885,1754922635010,-400.0,0.00016438,2]
[378600886,1754922635019,-400.0,0.00016438,2]
[378600887,1754922635028,-514.22,0.00016438,2]
[378600888,1754922635038,-400.0,0.00016438,2]
[378600889,1754922635047,-561.51,0.00016438,2]
[378600890,1754922635056,-2561.83,0.00016438,2]
[378600891,1754922635065,-400.0,0.00016438,2]
[378600892,1754922635074,-400.0,0.00016438,2]
[378600893,1754922635083,-950.03,0.00016438,2]
[378600894,1754922635092,-1281.04,0.00016438,2]
[378600895,1754922635101,-709.21,0.00016438,2]
[378600896,1754922635110,-400.0,0.00016438,2]
[378600897,1754922635120,-400.0,0.00016438,2]
[378600898,1754922635130,-400.0,0.00016438,2]
[378600899,1754922635139,-816.65,0.00016438,2]
[378600900,1754922635148,-400.0,0.00016438,2]
[378600901,1754922635157,-400.0,0.00016438,2]
[378600902,1754922635171,-1323.07,0.00016438,2]
[378600903,1754922635180,-400.0,0.00016438,2]
[378600904,1754922635190,-400.0,0.00016438,2]
[378600905,1754922635199,-29.75247296,0.00016438,2]
[378600906,1754922635211,-505.60752704,0.00016438,2]
[378600907,1754922635221,-400.0,0.00016438,2]
[378600908,1754922635230,-400.0,0.00016438,2]
[378600909,1754922635239,-288.56308726,0.00016438,2]
[378600910,1754922635249,-400.0,0.00016438,2]
[378600911,1754922635258,-400.0,0.00016438,2]
[378600912,1754922635268,-432.08,0.00016438,2]
[378600913,1754922635277,-442.31844091,0.00016438,2]
[378600914,1754922635287,-538.8,0.00016438,2]
[378600915,1754922635296,-400.0,0.00016438,2]
[378600916,1754922635305,-400.0,0.00016438,2]
[378600917,1754922635315,-400.0,0.00016438,2]
[378600918,1754922635324,-562.29,0.00016438,2]
[378600919,1754922635334,-682.6,0.00016438,2]
[378600920,1754922635344,-565.59,0.00016438,2]
[378600921,1754922635353,-400.0,0.00016438,2]
[378600922,1754922635365,-400.0,0.00016438,2]
[378600923,1754922635376,-446.39478555,0.00016438,2]
[378600924,1754922635386,-458.90161612,0.00016438,2]
[378601764,1754922646593,-265.31838388,0.00016438,2]
[378601766,1754922646603,-1544.99,0.00016438,2]
[378601768,1754922646613,-400.0,0.00016438,2]
[378601770,1754922646623,-606.31,0.00016438,2]
[378601772,1754922646633,-400.0,0.00016438,2]
[378601773,1754922646643,-400.0,0.00016438,2]
[378601775,1754922646654,-228.60240878,0.00016438,2]
[378601778,1754922646684,-171.39759122,0.00016438,2]
[378601780,1754922646695,-444.75,0.00016438,2]
[378601782,1754922646705,-737.18,0.00016438,2]
[378601784,1754922646714,-609.1,0.00016438,2]
[378601785,1754922646724,-1069.27,0.00016438,2]
[378601787,1754922646734,-531.77,0.00016438,2]
[378601789,1754922646744,-400.0,0.00016438,2]
[378601791,1754922646754,-507.32,0.00016438,2]
[378601793,1754922646763,-409.29459271,0.00016438,2]
[378601794,1754922646773,-1800.42,0.00016438,2]
[378601796,1754922646782,-400.0,0.00016438,2]
[378601799,1754922646792,-400.0,0.00016438,2]
[378601801,1754922646802,-400.0,0.00016438,2]
[378601803,1754922646811,-400.0,0.00016438,2]
[378601805,1754922646821,-161.31518405,0.00016438,2]
[378601807,1754922646830,-157.59987272,0.00016438,2]
[378601985,1754922648916,-242.40012728,0.00016438,2]
[378601987,1754922648926,-552.14,0.00016438,2]
[378601988,1754922648935,-400.0,0.00016438,2]
[378601990,1754922648945,-138.60021096,0.00016438,2]
[378602024,1754922649721,-501.39656058,0.00016438,2]
[378602038,1754922649861,-749.49343942,0.00016438,2]
[378602041,1754922649871,-144.78049331,0.00016438,2]
[378602134,1754922650767,-255.21950669,0.00016438,2]
[378602136,1754922650777,-400.0,0.00016438,2]
[378602138,1754922650787,-898.21,0.00016438,2]
[378602140,1754922650796,-400.0,0.00016438,2]
[378602142,1754922650806,-986.176347,0.00016438,2]
[378602145,1754922650827,-205.833653,0.00016438,2]
[378602147,1754922650836,-400.0,0.00016438,2]
[378602149,1754922650845,-292.80045295,0.00016438,2]
[378602151,1754922650854,-763.17,0.00016438,2]
[378602153,1754922650863,-400.0,0.00016438,2]
[378602155,1754922650873,-400.0,0.00016438,2]
[378602157,1754922650882,-400.0,0.00016438,2]
[378602159,1754922650891,-444.72,0.00016438,2]
[378602161,1754922650900,-400.0,0.00016438,2]
[378602163,1754922650909,-1870.06,0.00016438,2]
[378602165,1754922650919,-675.34,0.00016438,2]
[378602167,1754922650928,-400.0,0.00016438,2]
[378602169,1754922650937,-400.0,0.00016438,2]
[378602171,1754922650946,-400.0,0.00016438,2]
[378602173,1754922650955,-988.16,0.00016438,2]
[378602175,1754922650964,-400.0,0.00016438,2]
[378602177,1754922650973,-400.0,0.00016438,2]
[378602179,1754922650982,-400.0,0.00016438,2]
[378602180,1754922650991,-962.98,0.00016438,2]
[378602182,1754922651001,-400.0,0.00016438,2]
[378602184,1754922651010,-417.75,0.00016438,2]
[378602186,1754922651019,-400.0,0.00016438,2]
[378602196,1754922651104,-707.81,0.00016438,2]
[378602198,1754922651114,-476.14,0.00016438,2]
[378602200,1754922651123,-400.0,0.00016438,2]
[378602202,1754922651132,-741.95,0.00016438,2]
[378602204,1754922651141,-400.0,0.00016438,2]
[378602206,1754922651151,-400.0,0.00016438,2]
[378602208,1754922651160,-400.0,0.00016438,2]
[378602210,1754922651169,-400.0,0.00016438,2]
[378602212,1754922651180,-1020.24,0.00016438,2]
[378602214,1754922651189,-400.0,0.00016438,2]
[378602216,1754922651197,-876.43,0.00016438,2]
[378602217,1754922651206,-543.55,0.00016438,2]
[378602219,1754922651215,-492.54,0.00016438,2]
[378602221,1754922651224,-466.67,0.00016438,2]
[378602223,1754922651234,-1021.47362814,0.00016438,2]
[378602281,1754922651807,-602.39637186,0.00016438,2]
[378602283,1754922651817,-998.88,0.00016438,2]
[378602285,1754922651827,-766.46,0.00016438,2]
[378602287,1754922651836,-400.0,0.00016438,2]
[378602289,1754922651845,-400.0,0.00016438,2]
[378602291,1754922651854,-400.0,0.00016438,2]
[378602293,1754922651864,-915.64,0.00016438,2]
[378602295,1754922651873,-400.0,0.00016438,2]
[378602297,1754922651882,-989.73,0.00016438,2]
[378602298,1754922651891,-407.31,0.00016438,2]
[378602300,1754922651901,-400.0,0.00016438,2]
[378602302,1754922651910,-400.0,0.00016438,2]
[378602304,1754922651919,-407.79,0.00016438,2]
[378602306,1754922651930,-400.0,0.00016438,2]
[378602308,1754922651939,-400.0,0.00016438,2]
[378602310,1754922651948,-738.28,0.00016438,2]
[378602312,1754922651958,-400.0,0.00016438,2]
[378602314,1754922651967,-199.22,0.00016438,2]
[378602316,1754922651977,-851.51,0.00016438,2]
[378602318,1754922651986,-400.0,0.00016438,2]
[378602320,1754922651995,-577.32,0.00016438,2]
[378602322,1754922652004,-645.13,0.00016438,2]
[378602324,1754922652014,-627.76,0.00016438,2]
[378602326,1754922652023,-808.97,0.00016438,2]
[378602328,1754922652034,-691.01,0.00016438,2]
[378602330,1754922652043,-400.0,0.00016438,2]
[378602332,1754922652053,-947.73,0.00016438,2]
[378602334,1754922652062,-1077.36,0.00016438,2]
[378602336,1754922652071,-400.0,0.00016438,2]
[378602337,1754922652081,-520.61,0.00016438,2]
[378602339,1754922652090,-400.0,0.00016438,2]
[378602341,1754922652100,-652.6,0.00016438,2]
[378602343,1754922652110,-400.0,0.00016438,2]
[378602345,1754922652119,-400.0,0.00016438,2]
[378602347,1754922652129,-871.23,0.00016438,2]
[378602349,1754922652138,-441.34985271,0.00016438,2]
[378602351,1754922652148,-400.0,0.00016438,2]
[378602353,1754922652158,-400.0,0.00016438,2]
[378602355,1754922652168,-400.0,0.00016438,2]
[378602357,1754922652178,-400.0,0.00016438,2]
[378602359,1754922652187,-400.0,0.00016438,2]
[378602361,1754922652197,-400.36938443,0.00016438,2]
[378602362,1754922652206,-1482.06,0.00016438,2]
[378602363,1754922652216,-568.76,0.00016438,2]
[378602364,1754922652225,-408.6,0.00016438,2]
[378602365,1754922652234,-400.0,0.00016438,2]
[378602366,1754922652244,-2243.03,0.00016438,2]
[378602367,1754922652254,-400.0,0.00016438,2]
[378602368,1754922652263,-1607.21,0.00016438,2]
[378602369,1754922652272,-412.01802045,0.00016438,2]
[378602370,1754922652283,-584.66,0.00016438,2]
[378602371,1754922652292,-998.93,0.00016438,2]
[378602372,1754922652301,-934.55,0.00016438,2]
[378602373,1754922652312,-911.65,0.00016438,2]
[378602374,1754922652321,-400.0,0.00016438,2]
[378602375,1754922652331,-506.84,0.00016438,2]
[378602376,1754922652340,-842.48,0.00016438,2]
[378602377,1754922652350,-400.0,0.00016438,2]
[378602378,1754922652359,-400.0,0.00016438,2]
[378602379,1754922652369,-463.43,0.00016438,2]
[378602380,1754922652381,-400.0,0.00016438,2]
[378602381,1754922652391,-223.731487,0.00016438,2]
[378602382,1754922652400,-622.66,0.00016438,2]
[378602383,1754922652409,-442.58,0.00016438,2]
[378602384,1754922652419,-612.77,0.00016438,2]
[378602385,1754922652429,-506.62266124,0.00016438,2]
[378602386,1754922652439,-716.09,0.00016438,2]
[378602387,1754922652448,-495.96,0.00016438,2]
[378602388,1754922652459,-1225.74,0.00016438,2]
[378602389,1754922652469,-400.0,0.00016438,2]
[378602390,1754922652478,-223.731487,0.00016438,2]
[378602391,1754922652487,-1797.89,0.00016438,2]
[378602392,1754922652496,-1797.89,0.00016438,2]
[378602393,1754922652506,-1797.89,0.00016438,2]
[378602394,1754922652515,-475.22,0.00016438,2]
[378602395,1754922652525,-659.47,0.00016438,2]
[378602396,1754922652534,-400.0,0.00016438,2]
[378602397,1754922652543,-472.72,0.00016438,2]
[378602398,1754922652552,-400.0,0.00016438,2]
[378602399,1754922652562,-801.51,0.00016438,2]
[378602400,1754922652571,-446.82,0.00016438,2]
[378602401,1754922652580,-1156.13,0.00016438,2]
[378602402,1754922652590,-404.75762603,0.00016438,2]
[378602403,1754922652599,-606.93,0.00016438,2]
[378602404,1754922652608,-400.0,0.00016438,2]
[378602405,1754922652617,-819.73,0.00016438,2]
[378602406,1754922652627,-421.28,0.00016438,2]
[378602407,1754922652636,-1309.21,0.00016438,2]
[378602408,1754922652645,-649.87,0.00016438,2]
[378602409,1754922652654,-400.0,0.00016438,2]
[378602410,1754922652664,-1037.63,0.00016438,2]
[378602411,1754922652673,-883.44,0.00016438,2]
[378602412,1754922652683,-400.0,0.00016438,2]
[378602413,1754922652692,-400.0,0.00016438,2]
[378602414,1754922652702,-1050.9,0.00016438,2]
[378602415,1754922652711,-580.4,0.00016438,2]
[378602416,1754922652720,-766.58,0.00016438,2]
[378602417,1754922652729,-798.35,0.00016438,2]
[378602418,1754922652738,-1568.11,0.00016438,2]
[378602419,1754922652748,-1222.43,0.00016438,2]
[378602420,1754922652757,-400.0,0.00016438,2]
[378602421,1754922652766,-400.0,0.00016438,2]
[378602422,1754922652775,-400.0,0.00016438,2]
[378602423,1754922652785,-466.46,0.00016438,2]
[378602424,1754922652794,-400.0,0.00016438,2]
[378602425,1754922652803,-400.0,0.00016438,2]
[378602426,1754922652812,-809.18,0.00016438,2]
[378602427,1754922652822,-400.0,0.00016438,2]
[378602428,1754922652831,-546.58,0.00016438,2]
[378602429,1754922652840,-400.0,0.00016438,2]
[378602430,1754922652850,-400.0,0.00016438,2]
[378602431,1754922652859,-2501.11,0.00016438,2]
[378602432,1754922652868,-400.0,0.00016438,2]
[378602433,1754922652877,-400.0,0.00016438,2]
[378602434,1754922652886,-1716.21,0.00016438,2]
[378602435,1754922652895,-1191.14,0.00016438,2]
[378602436,1754922652904,-400.0,0.00016438,2]
[378602437,1754922652914,-726.16,0.00016438,2]
[378602438,1754922652923,-400.0,0.00016438,2]
[378602439,1754922652933,-400.0,0.00016438,2]
[378602440,1754922652943,-400.0,0.00016438,2]
[378602441,1754922652952,-260.73850808,0.00016438,2]
[378602442,1754922652962,-698.73,0.00016438,2]
[378602444,1754922652971,-506.17,0.00016438,2]
[378602445,1754922652979,-838.96,0.00016438,2]
[378602447,1754922652989,-868.79,0.00016438,2]
[378602449,1754922652998,-1710.5,0.00016438,2]
[378602451,1754922653008,-888.61,0.00016438,2]
[378602453,1754922653017,-499.04,0.00016438,2]
[378602455,1754922653026,-968.05,0.00016438,2]
[378602457,1754922653036,-448.45,0.00016438,2]
[378602459,1754922653045,-619.21,0.00016438,2]
[378602461,1754922653055,-864.9,0.00016438,2]
[378602463,1754922653063,-1328.49,0.00016438,2]
[378602464,1754922653073,-545.19,0.00016438,2]
[378602465,1754922653082,-400.0,0.00016438,2]
[378602466,1754922653091,-400.0,0.00016438,2]
[378602467,1754922653101,-654.46,0.00016438,2]
[378602468,1754922653110,-580.46,0.00016438,2]
[378602469,1754922653120,-810.69,0.00016438,2]
[378602470,1754922653129,-441.78,0.00016438,2]
[378602471,1754922653139,-889.2,0.00016438,2]
[378602472,1754922653148,-400.0,0.00016438,2]
[378602473,1754922653157,-400.0,0.00016438,2]
[378602474,1754922653167,-694.48,0.00016438,2]
[378602475,1754922653176,-486.13,0.00016438,2]
[378602476,1754922653186,-909.81,0.00016438,2]
[378602477,1754922653194,-854.9,0.00016438,2]
[378602478,1754922653203,-400.0,0.00016438,2]
[378602479,1754922653212,-802.68,0.00016438,2]
[378602480,1754922653222,-942.02,0.00016438,2]
[378602481,1754922653231,-242.05582148,0.00016438,2]
[378602482,1754922653240,-400.0,0.00016438,2]
[378602483,1754922653249,-400.0,0.00016438,2]
[378602484,1754922653259,-1023.21,0.00016438,2]
[378602485,1754922653268,-1080.54,0.00016438,2]
[378602486,1754922653277,-400.0,0.00016438,2]
[378602487,1754922653286,-1344.56,0.00016438,2]
[378602488,1754922653295,-400.0,0.00016438,2]
[378602489,1754922653305,-247.10661563,0.00016438,2]
[378602490,1754922653314,-400.0,0.00016438,2]
[378602491,1754922653323,-400.0,0.00016438,2]
[378602492,1754922653333,-1037.63,0.00016438,2]
[378602493,1754922653343,-175.42560757,0.00016438,2]
[378602494,1754922653352,-676.37,0.00016438,2]
[378602495,1754922653362,-895.68,0.00016438,2]
[378602496,1754922653373,-400.0,0.00016438,2]
[378602497,1754922653384,-1206.98,0.00016438,2]
[378602498,1754922653393,-400.0,0.00016438,2]
[378602499,1754922653402,-495.23,0.00016438,2]
[378602500,1754922653412,-643.61,0.00016438,2]
[378602501,1754922653423,-3613.84,0.00016438,2]
[378602502,1754922653434,-443.52,0.00016438,2]
[378602503,1754922653442,-400.0,0.00016438,2]
[378602504,1754922653453,-1082.52,0.00016438,2]
[378602505,1754922653463,-400.0,0.00016438,2]
[378602506,1754922653473,-872.8,0.00016438,2]
[378602507,1754922653483,-710.7,0.00016438,2]
[378602508,1754922653492,-766.7,0.00016438,2]
[378602509,1754922653501,-2526.18,0.00016438,2]
[378602510,1754922653511,-927.04,0.00016438,2]
[378602511,1754922653520,-400.0,0.00016438,2]
[378602512,1754922653531,-4650.28,0.00016438,2]
[378602513,1754922653540,-2522.33,0.00016438,2]
[378602514,1754922653550,-400.0,0.00016438,2]
[378602515,1754922653559,-1446.98,0.00016438,2]
[378602516,1754922653569,-573.3,0.00016438,2]
[378602517,1754922653578,-769.57,0.00016438,2]
[378602518,1754922653587,-595.4,0.00016438,2]
[378602519,1754922653596,-180.24957437,0.00016438,2]
[378602520,1754922653605,-1042.53,0.00016438,2]
[378602521,1754922653614,-500.0,0.00016438,2]
[378602522,1754922653623,-576.76,0.00016438,2]
[378602523,1754922653632,-1038.98,0.00016438,2]
[378602524,1754922653642,-400.0,0.00016438,2]
[378602525,1754922653651,-1734.01,0.00016438,2]
[378602526,1754922653660,-513.45,0.00016438,2]
[378602527,1754922653669,-1031.23,0.00016438,2]
[378602528,1754922653678,-3367.09,0.00016438,2]
[378602529,1754922653688,-975.03,0.00016438,2]
[378602530,1754922653697,-2275.16,0.00016438,2]
[378602531,1754922653706,-454.66,0.00016438,2]
[378602532,1754922653716,-400.0,0.00016438,2]
[378602533,1754922653726,-400.0,0.00016438,2]
[378602534,1754922653735,-1396.3,0.00016438,2]
[378602535,1754922653744,-400.0,0.00016438,2]
[378602536,1754922653753,-727.8,0.00016438,2]
[378602537,1754922653762,-550.93,0.00016438,2]
[378602538,1754922653771,-616.46,0.00016438,2]
[378602539,1754922653781,-557.7,0.00016438,2]
[378602540,1754922653790,-439.54,0.00016438,2]
[378602541,1754922653799,-814.08,0.00016438,2]
[378602542,1754922653809,-519.55,0.00016438,2]
[378602543,1754922653817,-732.37,0.00016438,2]
[378602544,1754922653827,-1300.75,0.00016438,2]
[378602545,1754922653836,-472.04,0.00016438,2]
[378602546,1754922653846,-608.7,0.00016438,2]
[378602547,1754922653856,-5435.92,0.00016438,2]
[378602548,1754922653865,-1225.23,0.00016438,2]
[378602549,1754922653875,-1152.84,0.00016438,2]
[378602550,1754922653885,-914.78,0.00016438,2]
[378602551,1754922653895,-1000.0,0.00016438,2]
[378602552,1754922653904,-473.84,0.00016438,2]
[378602553,1754922653914,-1937.19,0.00016438,2]
[378602554,1754922653923,-855.92,0.00016438,2]
[378602555,1754922653934,-856.43,0.00016438,2]
[378602556,1754922653943,-926.61,0.00016438,2]
[378602557,1754922653952,-400.0,0.00016438,2]
[378602558,1754922653961,-916.4,0.00016438,2]
[378602559,1754922653971,-827.19,0.00016438,2]
[378602560,1754922653980,-770.39,0.00016438,2]
[378602561,1754922653989,-667.09,0.00016438,2]
[378602562,1754922653998,-405.25397037,0.00016438,2]
[378602563,1754922654008,-400.0,0.00016438,2]
[378602564,1754922654017,-2085.94,0.00016438,2]
[378602565,1754922654027,-516.27,0.00016438,2]
[378602566,1754922654037,-1000.78,0.00016438,2]
[378602567,1754922654046,-400.0,0.00016438,2]
[378602568,1754922654055,-400.0,0.00016438,2]
[378602569,1754922654064,-2221.96,0.00016438,2]
[378602571,1754922654073,-3482.33,0.00016438,2]
[378602572,1754922654082,-2361.53,0.00016438,2]
[378602573,1754922654091,-518.16,0.00016438,2]
[378602574,1754922654101,-400.0,0.00016438,2]
[378602575,1754922654110,-470.55,0.00016438,2]
[378602576,1754922654120,-1635.46,0.00016438,2]
[378602577,1754922654129,-1408.31,0.00016438,2]
[378602578,1754922654138,-400.0,0.00016438,2]
[378602579,1754922654148,-587.43,0.00016438,2]
[378602580,1754922654157,-1476.26,0.00016438,2]
[378602581,1754922654167,-1820.51,0.00016438,2]
[378602582,1754922654176,-627.23,0.00016438,2]
[378602583,1754922654186,-180.65868705,0.00016438,2]
[378602584,1754922654195,-2118.47,0.00016438,2]
[378602585,1754922654204,-925.25,0.00016438,2]
[378602586,1754922654213,-1792.09,0.00016438,2]
[378602587,1754922654222,-459.93,0.00016438,2]
[378602588,1754922654232,-990.33,0.00016438,2]
[378602589,1754922654241,-1105.16,0.00016438,2]
[378602590,1754922654251,-420.94,0.00016438,2]
[378602591,1754922654260,-1087.78,0.00016438,2]
[378602592,1754922654270,-1609.98,0.00016438,2]
[378602593,1754922654280,-400.0,0.00016438,2]
[378602594,1754922654289,-1029.72,0.00016438,2]
[378602595,1754922654299,-2849.87,0.00016438,2]
[378602596,1754922654309,-717.35,0.00016438,2]
[378602597,1754922654318,-1042.73,0.00016438,2]
[378602598,1754922654327,-2273.03,0.00016438,2]
[378602599,1754922654336,-429.36,0.00016438,2]
[378602600,1754922654345,-781.98,0.00016438,2]
[378602601,1754922654355,-400.0,0.00016438,2]
[378602602,1754922654364,-3330.04,0.00016438,2]
[378602603,1754922654377,-2345.52,0.00016438,2]
[378602604,1754922654386,-983.65,0.00016438,2]
[378602605,1754922654396,-1074.49,0.00016438,2]
[378602606,1754922654405,-2446.18,0.00016438,2]
[378602607,1754922654414,-1258.22,0.00016438,2]
[378602608,1754922654423,-400.0,0.00016438,2]
[378602609,1754922654434,-683.52,0.00016438,2]
[378602610,1754922654444,-400.0,0.00016438,2]
[378602611,1754922654455,-781.71,0.00016438,2]
[378602612,1754922654622,-810.45,0.00016438,2]
[378602613,1754922654633,-1108.91,0.00016438,2]
[378602614,1754922654642,-1152.96,0.00016438,2]
[378602615,1754922654652,-1663.64,0.00016438,2]
[378602616,1754922654661,-500.0,0.00016438,2]
[378602617,1754922654671,-500.0,0.00016438,2]
[378602618,1754922654681,-500.0,0.00016438,2]
[378602619,1754922654691,-690.31,0.00016438,2]
[378602620,1754922654700,-400.0,0.00016438,2]
[378602621,1754922654710,-1320.23,0.00016438,2]
[378602622,1754922654719,-1715.79,0.00016438,2]
[378602623,1754922654728,-865.66,0.00016438,2]
[378602624,1754922654737,-400.0,0.00016438,2]
[378602625,1754922654746,-562.72,0.00016438,2]
[378602626,1754922654756,-1707.9,0.00016438,2]
[378602627,1754922654765,-2696.23,0.00016438,2]
[378602628,1754922654774,-2697.7,0.00016438,2]
[378602629,1754922654783,-820.64,0.00016438,2]
[378602630,1754922654793,-1370.31,0.00016438,2]
[378602631,1754922654801,-1969.61,0.00016438,2]
[378602632,1754922654811,-1769.9,0.00016438,2]
[378602633,1754922654820,-400.0,0.00016438,2]
[378602634,1754922654829,-3537.46,0.00016438,2]
[378602635,1754922654838,-1903.64,0.00016438,2]
[378602636,1754922654847,-978.8,0.00016438,2]
[378602637,1754922654857,-427.19,0.00016438,2]
[378602638,1754922654866,-1293.38,0.00016438,2]
[378602639,1754922654876,-400.0,0.00016438,2]
[378602640,1754922654885,-2984.41,0.00016438,2]
[378602641,1754922654895,-405.07,0.00016438,2]
[378602642,1754922654904,-2261.19,0.00016438,2]
[378602643,1754922654913,-783.42,0.00016438,2]
[378602644,1754922654922,-477.84,0.00016438,2]
[378602645,1754922654933,-1347.85,0.00016438,2]
[378602646,1754922654942,-400.0,0.00016438,2]
[378602647,1754922654951,-400.0,0.00016438,2]
[378602648,1754922654960,-400.0,0.00016438,2]
[378602649,1754922654970,-967.55,0.00016438,2]
[378602650,1754922654979,-810.5,0.00016438,2]
[378602651,1754922654988,-1307.52,0.00016438,2]
[378602652,1754922654997,-1134.07,0.00016438,2]
[378602653,1754922655006,-1445.81,0.00016438,2]
[378602654,1754922655015,-704.07,0.00016438,2]
[378602655,1754922655025,-2052.74,0.00016438,2]
[378602657,1754922655034,-686.76,0.00016438,2]
[378602659,1754922655043,-400.0,0.00016438,2]
[378602661,1754922655051,-1581.96,0.00016438,2]
[378602663,1754922655060,-400.0,0.00016438,2]
[378602665,1754922655069,-400.0,0.00016438,2]
[378602667,1754922655078,-1331.21,0.00016438,2]
[378602669,1754922655088,-1136.62,0.00016438,2]
[378602671,1754922655097,-3016.15,0.00016438,2]
[378602673,1754922655107,-891.14,0.00016438,2]
[378602675,1754922655117,-3827.23,0.00016438,2]
[378602677,1754922655126,-2309.98,0.00016438,2]
[378602678,1754922655135,-424.89,0.00016438,2]
[378602679,1754922655144,-569.08,0.00016438,2]
[378602680,1754922655154,-7430.73,0.00016438,2]
[378602681,1754922655163,-511.82,0.00016438,2]
[378602682,1754922655174,-1602.59,0.00016438,2]
[378602683,1754922655185,-631.65,0.00016438,2]
[378602684,1754922655194,-400.0,0.00016438,2]
[378602685,1754922655203,-1663.08,0.00016438,2]
[378602686,1754922655213,-440.21,0.00016438,2]
[378602687,1754922655222,-1131.77,0.00016438,2]
[378602688,1754922655231,-400.0,0.00016438,2]
[378602689,1754922655241,-1150.1,0.00016438,2]
[378602690,1754922655250,-977.56,0.00016438,2]
[378602691,1754922655259,-400.0,0.00016438,2]
[378602692,1754922655268,-408.38494813,0.00016438,2]
[378602693,1754922655278,-701.62,0.00016438,2]
[378602694,1754922655287,-400.0,0.00016438,2]
[378602695,1754922655296,-1017.22,0.00016438,2]
[378602696,1754922655306,-400.0,0.00016438,2]
[378602697,1754922655316,-565.3,0.00016438,2]
[378602698,1754922655325,-1773.45,0.00016438,2]
[378602699,1754922655335,-811.22,0.00016438,2]
[378602700,1754922655344,-498.23,0.00016438,2]
[378602701,1754922655354,-1310.94,0.00016438,2]
[378602702,1754922655363,-1702.82,0.00016438,2]
[378602703,1754922655375,-1561.76,0.00016438,2]
[378602704,1754922655385,-651.92,0.00016438,2]
[378602705,1754922655395,-1566.44,0.00016438,2]
[378602706,1754922655404,-8648.83,0.00016438,2]
[378602707,1754922655413,-400.0,0.00016438,2]
[378602708,1754922655423,-1531.97,0.00016438,2]
[378602709,1754922655433,-921.47,0.00016438,2]
[378602710,1754922655443,-1541.05,0.00016438,2]
[378602711,1754922655452,-404.9921545,0.00016438,2]
[378602712,1754922655462,-650.72,0.00016438,2]
[378602713,1754922655471,-885.37,0.00016438,2]
[378602714,1754922655481,-2827.39,0.00016438,2]
[378602715,1754922655490,-1575.37,0.00016438,2]
[378602716,1754922655500,-746.67,0.00016438,2]
[378602717,1754922655510,-1171.12,0.00016438,2]
[378602718,1754922655520,-903.79,0.00016438,2]
[378602719,1754922655529,-2191.19,0.00016438,2]
[378602720,1754922655538,-400.0,0.00016438,2]
[378602721,1754922655547,-401.94664661,0.00016438,2]
[378602722,1754922655557,-400.0,0.00016438,2]
[378602723,1754922655567,-690.56,0.00016438,2]